[Event "48th Ciutat de Badalona Open 2024"]
[Site "Badalona"]
[Date "2024.08.09"]
[Round "8.6"]
[White "Barath Kalyan M"]
[Black "Vidarte Morales, Arturo"]
[Result "1/2-1/2"]
[ECO "A01"]
[WhiteElo "2174"]
[BlackElo "2166"]
[Annotator "RC"]
[PlyCount "67"]
[EventDate "2024.07.29"]
[EventType "swiss"]
[EventCountry "ESP"]
[SourceTitle "playchess.com"]
[Source "ChessBase"]
[SourceQuality "1"]
[TimeControl "5400+30"]

1. b3 {[%emt 0:00:46]} e5 {[%emt 0:00:06]} 2. Bb2 {[%emt 0:00:05]} Nc6 {[%emt 0:00:06]} 3. c4 {[%emt 0:00:05]} Nf6 {[%emt 0:00:19]} 4. e3 {[%emt 0:00:10]} d5 {[%emt 0:00:22]} 5. cxd5 {[%emt 0:00:10]} Nxd5 {[%emt 0:00:05]} 6. a3 {[%emt 0:00:06]} Bd6 {[%emt 0:00:22]} 7. d3 {[%emt 0:01:07]} O-O {[%emt 0:00:10]} 8. Nf3 {[%emt 0:00:21]} Qe7 {[%emt 0:00:12]} 9. Be2 {[%emt 0:01:24]} f5 {[%emt 0:00:56]} 10. O-O {[%emt 0:00:57]} Bd7 {[%emt 0:00:09]} 11. Nbd2 {[%emt 0:00:37]} Rae8 {[%emt 0:05:25]} 12. Qc2 {[%emt 0:02:48]} Kh8 {[%emt 0:00:22]} 13. Nc4 {[%emt 0:02:29]} a6 {[%emt 0:02:21]} 14. Rfd1 {[%emt 0:05:47]} b5 {[%emt 0:04:56]} 15. Nxd6 {[%emt 0:00:23]} cxd6 {[%emt 0:00:05]} 16. Rac1 {[%emt 0:05:28]} Rc8 {[%emt 0:04:33]} 17. Qb1 {[%emt 0:02:07]} Be6 {[%emt 0:03:48]} 18. Ba1 {[%emt 0:05:32]} Qa7 {[%emt 0:13:14]} 19. Bf1 {[%emt 0:03:27]} Nf6 {[%emt 0:05:50]} 20. d4 {[%emt 0:10:33]} e4 {[%emt 0:01:24]} 21. d5 {[%emt 0:20:13]} Nxd5 {[%emt 0:01:23]} 22. Rxc6 {[%emt 0:02:32]} Rxc6 {[%emt 0:03:57]} 23. Nd4 {[%emt 0:00:34]} Qd7 {[%emt 0:01:30]} 24. Nxc6 {[%emt 0:06:10]} Qxc6 {[%emt 0:01:50]} 25. Qb2 {[%emt 0:01:08]} Nf6 {[%emt 0:01:15]} 26. Qd2 {[%emt 0:06:44]} Rd8 {[%emt 0:08:05]} 27. Rc1 {[%emt 0:04:46]} Qd5 {[%emt 0:02:05]} 28. Qa5 {[%emt 0:01:07]} Ra8 {[%emt 0:03:21]} 29. a4 {[%emt 0:10:42]} Kg8 {[%emt 0:07:01]} 30. Bd4 {[%emt 0:07:12]} bxa4 {[%emt 0:30:18]} 31. Qxd5 {[%emt 0:00:30]} Nxd5 {[%emt 0:00:30]} 32. bxa4 Rc8 {[%emt 0:00:30]} 33. Rb1 {[%emt 0:01:00]} a5 {[%emt 0:00:30]} 34. Rb7 {[%emt 0:00:30]} 1/2-1/2

[Event "48th Ciutat de Badalona Open 2024"]
[Site "Badalona"]
[Date "2024.08.09"]
[Round "8.7"]
[White "Jain, Kushagra"]
[Black "Iglesias Romero, Jorge"]
[Result "1/2-1/2"]
[ECO "C11"]
[WhiteElo "1965"]
[BlackElo "2271"]
[Annotator "RC"]
[PlyCount "65"]
[EventDate "2024.07.29"]
[EventType "swiss"]
[EventCountry "ESP"]
[SourceTitle "playchess.com"]
[Source "ChessBase"]
[SourceQuality "1"]
[TimeControl "5400+30"]

1. e4 {[%emt 0:00:04]} e6 {[%emt 0:00:41]} 2. d4 {[%emt 0:01:02]} d5 {[%emt 0:00:09]} 3. Nc3 {[%emt 0:00:20]} Nf6 {[%emt 0:03:10]} 4. e5 {[%emt 0:00:13]} Nfd7 {[%emt 0:00:09]} 5. f4 {[%emt 0:00:02]} c5 {[%emt 0:00:17]} 6. Nf3 {[%emt 0:00:02]} Nc6 {[%emt 0:00:57]} 7. Be3 {[%emt 0:00:01]} a6 {[%emt 0:00:15]} 8. a3 {[%emt 0:00:27]} b5 {[%emt 0:00:58]} 9. Bd3 {[%emt 0:00:06]} Qb6 {[%emt 0:08:49]} 10. O-O {[%emt 0:00:11]} Nxd4 {[%emt 0:07:22]} 11. Nxd4 {[%emt 0:00:15]} cxd4 {[%emt 0:00:09]} 12. Bf2 {[%emt 0:00:05]} Nb8 {[%emt 0:07:22]} 13. Ne2 {[%emt 0:06:15]} Nc6 {[%emt 0:00:14]} 14. c3 {[%emt 0:02:52]} Qc7 {[%emt 0:11:24]} 15. Nxd4 {[%emt 0:20:33]} Nxd4 {[%emt 0:10:28]} 16. Bxd4 {[%emt 0:07:29]} Bc5 {[%emt 0:02:51]} 17. Qd2 {[%emt 0:59:03]} Bd7 {[%emt 0:13:45]} 18. Qf2 {[%emt 0:00:00]} Rc8 {[%emt 0:01:11]} 19. g4 {[%emt 0:00:00]} h5 {[%emt 0:08:13]} 20. h3 {[%emt 0:00:00]} hxg4 {[%emt 0:01:44]} 21. hxg4 {[%emt 0:00:00]} Rh3 {[%emt 0:02:58]} 22. Rad1 {[%emt 0:00:00]} Qd8 {[%emt 0:06:56]} 23. Kg2 {[%emt 0:00:00]} Qh4 {[%emt 0:01:14]} 24. Qxh4 {[%emt 0:00:00]} Rxh4 {[%emt 0:00:05]} 25. Bxc5 {[%emt 0:00:00]} Rxc5 {[%emt 0:00:21]} 26. Rh1 {[%emt 0:00:00]} Rxh1 {[%emt 0:00:35]} 27. Rxh1 {[%emt 0:00:00]} Rc8 {[%emt 0:03:08]} 28. f5 {[%emt 0:00:00]} f6 {[%emt 0:04:09]} 29. exf6 {[%emt 0:00:48]} gxf6 {[%emt 0:00:09]} 30. fxe6 {[%emt 0:00:48]} Bxe6 {[%emt 0:00:34]} 31. Kf3 {[%emt 0:02:00]} Kd7 {[%emt 0:00:57]} 32. Rh7+ {[%emt 0:00:49]} Kd6 {[%emt 0:01:56]} 33. Ra7 {[%emt 0:00:59]} 1/2-1/2

[Event "48th Ciutat de Badalona Open 2024"]
[Site "Badalona"]
[Date "2024.08.09"]
[Round "8.8"]
[White "Perpinya Rofes, Lluis Maria"]
[Black "Campins Machado, Francesc"]
[Result "1-0"]
[ECO "B82"]
[WhiteElo "2189"]
[BlackElo "2148"]
[Annotator "RC"]
[PlyCount "89"]
[EventDate "2024.07.29"]
[EventType "swiss"]
[EventCountry "ESP"]
[SourceTitle "playchess.com"]
[Source "ChessBase"]
[SourceQuality "1"]
[TimeControl "5400+30"]

1. e4 {[%emt 0:00:06]} c5 {[%emt 0:00:05]} 2. Nf3 {[%emt 0:00:14]} e6 {[%emt 0:00:06]} 3. d4 {[%emt 0:00:16]} cxd4 {[%emt 0:00:05]} 4. Nxd4 {[%emt 0:00:05]} Nf6 {[%emt 0:00:05]} 5. Nc3 {[%emt 0:00:22]} d6 {[%emt 0:00:05]} 6. Be3 {[%emt 0:00:23]} Be7 {[%emt 0:00:50]} 7. f4 {[%emt 0:01:52]} Nc6 {[%emt 0:00:30]} 8. Qf3 {[%emt 0:01:04]} e5 {[%emt 0:01:36]} 9. Nxc6 {[%emt 0:01:24]} bxc6 {[%emt 0:00:04]} 10. f5 {[%emt 0:00:15]} Qa5 {[%emt 0:17:58]} 11. O-O-O {[%emt 0:06:50]} Ba6 {[%emt 0:00:48]} 12. g4 {[%emt 0:09:35]} Bxf1 {[%emt 0:01:14]} 13. Rhxf1 {[%emt 0:00:17]} h6 {[%emt 0:08:15]} 14. h4 {[%emt 0:16:34]} Nd7 {[%emt 0:04:23]} 15. g5 {[%emt 0:03:27]} hxg5 {[%emt 0:00:06]} 16. hxg5 {[%emt 0:00:19]} f6 {[%emt 0:07:51]} 17. Qe2 {[%emt 0:11:39]} Nc5 {[%emt 0:29:19]} 18. Qc4 {[%emt 0:09:08]} Qa6 {[%emt 0:00:23]} 19. Qb4 {[%emt 0:06:09]} O-O-O {[%emt 0:02:27]} 20. Rg1 {[%emt 0:14:13]} fxg5 {[%emt 0:01:56]} 21. Bxg5 {[%emt 0:02:32]} Bxg5+ {[%emt 0:00:25]} 22. Rxg5 {[%emt 0:00:21]} Rd7 {[%emt 0:00:51]} 23. Rg6 {[%emt 0:02:06]} Rh6 {[%emt 0:04:30]} 24. Rxh6 {[%emt 0:06:30]} gxh6 {[%emt 0:00:20]} 25. Rg1 {[%emt 0:01:12]} Rb7 {[%emt 0:06:26]} 26. Rg8+ {[%emt 0:00:44]} Kd7 {[%emt 0:00:04]} 27. Rg7+ {[%emt 0:00:39]} Ke8 {[%emt 0:00:19]} 28. Rxb7 {[%emt 0:01:14]} Qxb7 {[%emt 0:00:04]} 29. Qc4 {[%emt 0:00:41]} Qf7 {[%emt 0:00:02]} 30. Qe2 {[%emt 0:00:24]} Qf6 {[%emt 0:01:08]} 31. b4 {[%emt 0:00:27]} Qg5+ {[%emt 0:01:22]} 32. Kb2 {[%emt 0:00:31]} Nb7 {[%emt 0:03:08]} 33. Qa6 {[%emt 0:01:26]} Nd8 {[%emt 0:00:05]} 34. Qxa7 {[%emt 0:00:38]} h5 {[%emt 0:00:12]} 35. a4 {[%emt 0:01:18]} h4 {[%emt 0:01:11]} 36. b5 {[%emt 0:00:32]} h3 {[%emt 0:00:41]} 37. Qh7 {[%emt 0:00:22]} Qg2 {[%emt 0:00:41]} 38. f6 {[%emt 0:01:14]} Nf7 {[%emt 0:01:45]} 39. bxc6 {[%emt 0:01:12]} Qg1 {[%emt 0:00:01]} 40. c7 {[%emt 0:00:52]} Qb6+ {[%emt 0:00:04]} 41. Nb5 {[%emt 0:00:29]} Qc5 {[%emt 0:00:07]} 42. Qg8+ {[%emt 0:00:08]} Kd7 {[%emt 0:00:28]} 43. Qxf7+ {[%emt 0:00:07]} Kc8 {[%emt 0:00:16]} 44. Qe8+ {[%emt 0:00:36]} Kb7 {[%emt 0:00:07]} 45. Qb8+ {[%emt 0:02:33]} 1-0

[Event "48th Ciutat de Badalona Open 2024"]
[Site "Badalona"]
[Date "2024.08.09"]
[Round "8.9"]
[White "Infiesta Aguila, Agusti"]
[Black "Weingarten, Phineas"]
[Result "1-0"]
[ECO "D13"]
[WhiteElo "1836"]
[BlackElo "1824"]
[Annotator "NA RC"]
[PlyCount "133"]
[EventDate "2024.07.29"]
[EventType "swiss"]
[EventCountry "ESP"]
[SourceTitle "playchess.com"]
[Source "ChessBase"]
[SourceQuality "1"]
[TimeControl "5400+30"]

1. c4 {[%emt 0:00:08]} c6 {[%emt 0:00:03]} 2. d4 {[%emt 0:00:14]} d5 {[%emt 0:00:04]} 3. cxd5 {[%emt 0:00:10]} cxd5 {[%emt 0:00:03]} 4. Nc3 {[%emt 0:00:14]} Nf6 {[%emt 0:00:43]} 5. Bf4 {[%emt 0:00:12]} e6 {[%emt 0:02:05]} 6. e3 {[%emt 0:00:52]} Bd6 {[%emt 0:00:57]} 7. Bxd6 {[%emt 0:00:56]} Qxd6 {[%emt 0:00:06]} 8. Nf3 {[%emt 0:00:44]} Nc6 {[%emt 0:01:11]} 9. Bd3 {[%emt 0:00:48]} O-O {[%emt 0:01:07]} 10. O-O {[%emt 0:00:56]} e5 {[%emt 0:08:36]} 11. dxe5 {[%emt 0:00:17]} Nxe5 {[%emt 0:00:05]} 12. Be2 {[%emt 0:00:24]} Rd8 {[%emt 0:10:59]} 13. Qd4 {[%emt 0:05:14]} Nc6 {[%emt 0:01:39]} 14. Qh4 {[%emt 0:05:12]} Bf5 {[%emt 0:09:41]} 15. Rfd1 {[%emt 0:03:39]} Qe6 {[%emt 0:13:07]} 16. Nd4 {[%emt 0:07:33]} Qe5 {[%emt 0:05:19]} 17. Nxf5 {[%emt 0:04:38]} Qxf5 {[%emt 0:00:05]} 18. Rd2 {[%emt 0:03:37]} Rd7 {[%emt 0:08:22]} 19. Rad1 {[%emt 0:02:05]} Rad8 {[%emt 0:05:17]} 20. h3 {[%emt 0:15:18]} Qe5 {[%emt 0:03:09]} 21. Bf3 {[%emt 0:07:21]} h6 {[%emt 0:05:35]} 22. Ne2 {[%emt 0:04:29]} a6 {[%emt 0:07:02]} 23. Nd4 {[%emt 0:01:29]} Nxd4 {[%emt 0:00:39]} 24. Qxd4 {[%emt 0:01:07]} Qxd4 {[%emt 0:00:07]} 25. Rxd4 {[%emt 0:00:07]} Kf8 {[%emt 0:01:12]} 26. Kf1 {[%emt 0:04:26]} Ke7 {[%emt 0:00:28]} 27. Ke2 {[%emt 0:00:26]} Ke6 {[%emt 0:04:43]} 28. Rc1 {[%emt 0:08:42]} Rd6 {[%emt 0:01:37]} 29. Rc7 {[%emt 0:00:51]} R8d7 {[%emt 0:00:32]} 30. Rxd7 {[%emt 0:01:07]} Rxd7 {[%emt 0:00:42]} 31. Bg4+ {[%emt 0:01:31]} Nxg4 {[%emt 0:00:08]} 32. Rxg4 {[%emt 0:00:09]} g6 {[%emt 0:01:09]} 33. Rh4 {[%emt 0:00:32]} h5 {[%emt 0:00:12]} 34. Rd4 {[%emt 0:00:46]} Rc7 {[%emt 0:00:35]} 35. Kd2 {[%emt 0:00:16]} Ke5 {[%emt 0:01:04]} 36. Ra4 {[%emt 0:04:06]} Ke6 {[%emt 0:02:18]} 37. Ra3 {[%emt 0:00:40]} Ke5 {[%emt 0:00:06]} 38. Rc3 {[%emt 0:04:12]} Rd7 {[%emt 0:01:04]} 39. Kd3 {[%emt 0:01:37]} Re7 {[%emt 0:02:27]} 40. Rc8 {[%emt 0:00:54]} Rd7 {[%emt 0:00:51]} 41. Rc5 {[%emt 0:01:54]} Kd6 {[%emt 0:04:51]} 42. Kd4 {[%emt 0:00:11]} Ke6 {[%emt 0:00:04]} 43. a4 {[%emt 0:02:13]} Rd6 {[%emt 0:00:52]} 44. b4 {[%emt 0:01:12]} Rd7 {[%emt 0:00:52]} 45. Rc8 {[%emt 0:00:35]} Rd6 {[%emt 0:00:27]} 46. Kc5 {[%emt 0:02:11]} b6+ {[%emt 0:00:28]} 47. Kd4 {[%emt 0:00:17]} Kd7 {[%emt 0:00:35]} 48. Ra8 {[%emt 0:00:40]} Kc6 {[%emt 0:00:32]} 49. Rxa6 {[%emt 0:00:32]} Kb7 {[%emt 0:00:06]} 50. b5 {[%emt 0:00:20]} Rd8 {[%emt 0:00:50]} 51. a5 {[%emt 0:01:29]} bxa5 {[%emt 0:00:09]} 52. Rxa5 {[%emt 0:00:35]} Kb6 {[%emt 0:00:05]} 53. Ra2 {[%emt 0:00:50]} Kxb5 {[%emt 0:00:52]} 54. Ra7 {[%emt 0:00:17]} f6 {[%emt 0:00:05]} 55. h4 {[%emt 0:00:41]} g5 {[%emt 0:01:28]} 56. hxg5 {[%emt 0:00:12]} fxg5 {[%emt 0:00:02]} 57. Rg7 {[%emt 0:00:19]} Rf8 {[%emt 0:00:38]} 58. f3 {[%emt 0:00:49]} Rf5 {[%emt 0:00:45]} 59. Rh7 {[%emt 0:00:44]} h4 {[%emt 0:00:10]} 60. Rh6 {[%emt 0:00:14]} Kb4 {[%emt 0:00:48]} 61. Rb6+ {[%emt 0:00:56]} Ka3 {[%emt 0:00:31]} 62. Rd6 {[%emt 0:01:30]} g4 {[%emt 0:00:32]} 63. fxg4 {[%emt 0:01:45]} Rg5 {[%emt 0:00:03]} 64. Rxd5 {[%emt 0:00:20]} Rxg4+ {[%emt 0:00:03]} 65. e4 {[%emt 0:00:21]} Rxg2 {[%emt 0:00:19]} 66. Rh5 {[%emt 0:00:07]} Rd2+ {[%emt 0:02:14]} 67. Kc3 {[%emt 0:00:21]} 1-0

[Event "48th Ciutat de Badalona Open 2024"]
[Site "Badalona"]
[Date "2024.08.09"]
[Round "8.10"]
[White "Comas Molne, Pau"]
[Black "Sanchez Murcia, Daniel"]
[Result "1-0"]
[ECO "E17"]
[WhiteElo "1860"]
[BlackElo "1823"]
[Annotator "NA RC"]
[PlyCount "111"]
[EventDate "2024.07.29"]
[EventType "swiss"]
[EventCountry "ESP"]
[SourceTitle "playchess.com"]
[Source "ChessBase"]
[SourceQuality "1"]
[TimeControl "5400+30"]

1. d4 {[%emt 0:00:03]} e6 {[%emt 0:00:10]} 2. Nf3 {[%emt 0:00:08]} b6 {[%emt 0:00:15]} 3. g3 {[%emt 0:00:58]} Bb7 {[%emt 0:00:26]} 4. c4 {[%emt 0:00:27]} d5 {[%emt 0:05:39]} 5. cxd5 {[%emt 0:00:16]} exd5 {[%emt 0:02:35]} 6. Bg2 {[%emt 0:00:12]} Nf6 {[%emt 0:00:42]} 7. Nc3 {[%emt 0:00:29]} Be7 {[%emt 0:01:49]} 8. O-O {[%emt 0:00:09]} Nbd7 {[%emt 0:01:37]} 9. Bf4 {[%emt 0:01:03]} c6 {[%emt 0:02:11]} 10. Re1 {[%emt 0:01:57]} O-O {[%emt 0:00:19]} 11. Ne5 {[%emt 0:05:28]} Re8 {[%emt 0:08:55]} 12. Rc1 {[%emt 0:02:29]} Rc8 {[%emt 0:03:01]} 13. e4 {[%emt 0:01:08]} Nxe4 {[%emt 0:05:32]} 14. Nxe4 {[%emt 0:00:08]} dxe4 {[%emt 0:00:09]} 15. Bh3 {[%emt 0:11:19]} Nxe5 {[%emt 0:04:02]} 16. Bxe5 {[%emt 0:00:24]} Qd5 {[%emt 0:03:26]} 17. Bxc8 {[%emt 0:04:57]} Bxc8 {[%emt 0:00:25]} 18. Qb3 {[%emt 0:00:24]} Qxb3 {[%emt 0:00:39]} 19. axb3 {[%emt 0:00:11]} f6 {[%emt 0:00:06]} 20. Bf4 {[%emt 0:03:32]} Bb4 {[%emt 0:00:16]} 21. Re2 {[%emt 0:01:33]} Ba6 {[%emt 0:01:46]} 22. Rec2 {[%emt 0:00:53]} Bb5 {[%emt 0:00:01]} 23. Bd2 {[%emt 0:02:07]} Bxd2 {[%emt 0:06:54]} 24. Rxd2 {[%emt 0:00:02]} Rd8 {[%emt 0:00:17]} 25. g4 {[%emt 0:02:20]} g6 {[%emt 0:01:28]} 26. Kg2 {[%emt 0:00:48]} Kf7 {[%emt 0:01:01]} 27. Kg3 {[%emt 0:00:57]} Ke6 {[%emt 0:00:43]} 28. h4 {[%emt 0:02:13]} Kd5 {[%emt 0:05:14]} 29. Kf4 {[%emt 0:01:33]} Rf8 {[%emt 0:07:50]} 30. Re1 {[%emt 0:07:09]} f5 {[%emt 0:00:29]} 31. g5 {[%emt 0:03:21]} Rf7 {[%emt 0:02:23]} 32. h5 {[%emt 0:00:57]} Bd3 {[%emt 0:00:51]} 33. hxg6 {[%emt 0:00:12]} hxg6 {[%emt 0:00:02]} 34. Rc1 {[%emt 0:01:19]} Rh7 {[%emt 0:04:36]} 35. Kg3 {[%emt 0:03:41]} Rh5 {[%emt 0:00:37]} 36. f4 {[%emt 0:00:02]} Rh7 {[%emt 0:05:47]} 37. Rh2 {[%emt 0:05:46]} Re7 {[%emt 0:02:28]} 38. Rh8 {[%emt 0:01:32]} Rd7 {[%emt 0:08:30]} 39. Re8 {[%emt 0:05:26]} Bb5 {[%emt 0:02:18]} 40. Rd1 {[%emt 0:01:42]} Bd3 {[%emt 0:04:48]} 41. Kf2 {[%emt 0:00:34]} Rh7 {[%emt 0:00:36]} 42. Rd8+ {[%emt 0:00:41]} Ke6 {[%emt 0:00:14]} 43. Kg3 {[%emt 0:01:11]} Rg7 {[%emt 0:04:29]} 44. Rh1 {[%emt 0:01:52]} Be2 {[%emt 0:00:01]} 45. Rhh8 {[%emt 0:01:34]} Bb5 {[%emt 0:05:24]} 46. Rhe8+ {[%emt 0:00:32]} Kf7 {[%emt 0:00:02]} 47. Rf8+ {[%emt 0:01:09]} Ke7 {[%emt 0:00:05]} 48. Rfe8+ {[%emt 0:01:30]} Kf7 {[%emt 0:00:01]} 49. Rd7+ {[%emt 0:00:46]} Kxe8 {[%emt 0:00:02]} 50. Rxg7 {[%emt 0:00:17]} e3 {[%emt 0:00:13]} 51. Rxg6 {[%emt 0:00:25]} e2 {[%emt 0:00:17]} 52. Kf2 {[%emt 0:00:17]} Ke7 {[%emt 0:02:40]} 53. Rf6 {[%emt 0:00:28]} Bd3 {[%emt 0:00:02]} 54. Rxc6 {[%emt 0:00:10]} Kf7 {[%emt 0:00:40]} 55. d5 {[%emt 0:00:39]} e1=Q+ {[%emt 0:00:11]} 56. Kxe1 {[%emt 0:00:02]} 1-0

[Event "48th Ciutat de Badalona Open 2024"]
[Site "Badalona"]
[Date "2024.08.10"]
[Round "9.1"]
[White "Blasco Coll, Andreu"]
[Black "Berdayes Ason, Dylan Isidro"]
[Result "1/2-1/2"]
[ECO "C54"]
[WhiteElo "2260"]
[BlackElo "2476"]
[Annotator "TA"]
[PlyCount "52"]
[EventDate "2024.07.29"]
[EventType "swiss"]
[EventCountry "ESP"]
[SourceTitle "playchess.com"]
[Source "ChessBase"]
[SourceQuality "1"]
[TimeControl "5400+30"]

{[%evp 10,52,19,16,24,18,25,7,6,15,22,5,29,-12,0,0,0,0,0,0,0,11,8,8,8,0,4,7,10,0,0,-11,0,-12,-7,-16,-31,-18,-6,-13,0,0,0,0,5]} 1. e4 {[%emt 0:00:02]} e5 {[%emt 0:02:53]} 2. Nf3 {[%emt 0:00:16]} Nc6 {[%emt 0:00:03]} 3. Bc4 {[%emt 0:00:18]} Bc5 {[%emt 0:00:03]} 4. c3 {[%emt 0:00:20]} Nf6 {[%emt 0:00:03]} 5. d3 {[%emt 0:00:17]} d6 {[%emt 0:00:19]} 6. O-O {[%emt 0:00:40]} a5 {[%emt 0:00:15]} 7. Re1 {[%emt 0:01:21]} Ba7 {[%emt 0:00:03]} 8. Bb3 {[%emt 0:01:41]} O-O {[%emt 0:00:59]} 9. h3 {[%emt 0:00:48]} Be6 {[%emt 0:02:01]} 10. Bc2 {[%emt 0:03:07]} Ne7 {[%emt 0:14:29]} 11. Be3 {[%emt 0:08:25]} Bxe3 {[%emt 0:00:40]} 12. Rxe3 {[%emt 0:00:12]} Ng6 {[%emt 0:01:31]} 13. d4 {[%emt 0:02:46]} h6 {[%emt 0:02:32]} 14. Nbd2 {[%emt 0:06:11]} b5 {[%emt 0:04:05]} 15. a4 {[%emt 0:09:20]} c6 {[%emt 0:01:34]} 16. Bb3 {[%emt 0:06:20]} Qe7 {[%emt 0:07:56]} 17. Bxe6 {[%emt 0:07:40]} Qxe6 {[%emt 0:00:09]} 18. axb5 {[%emt 0:00:38]} cxb5 {[%emt 0:00:07]} 19. d5 {[%emt 0:07:18]} Qc8 {[%emt 0:05:38]} 20. b4 {[%emt 0:06:38]} Qc7 {[%emt 0:00:09]} 21. Qf1 {[%emt 0:06:54]} Rfb8 {[%emt 0:08:38]} 22. Nb3 {[%emt 0:00:48]} axb4 {[%emt 0:00:16]} 23. cxb4 {[%emt 0:30:00]} Rxa1 {[%emt 0:08:34] The position is equal.} 24. Qxa1 {[%emt 0:00:00]} Nf4 {[%emt 0:00:14]} 25. Na5 {[%emt 0:00:00]} Ra8 {[%emt 0:05:32]} 26. Qf1 {[%emt 0:00:00]} Qd7 {[%emt 0:06:51] A rather calm draw.   Weighted Error Value: White=0.07 (flawless) /Black=0.04 (flawless) .  Inaccurate:     	White=1     	---        OK:         	White=6     	Black=7      Best:        	---       	Black=1} 1/2-1/2

[Event "48th Ciutat de Badalona Open 2024"]
[Site "Badalona"]
[Date "2024.08.10"]
[Round "9.2"]
[White "Cruz, Filemon"]
[Black "Vitier Vazquez, Cristian"]
[Result "0-1"]
[ECO "A88"]
[WhiteElo "2249"]
[BlackElo "2357"]
[Annotator "RC"]
[PlyCount "72"]
[EventDate "2024.07.29"]
[EventType "swiss"]
[EventCountry "ESP"]
[SourceTitle "playchess.com"]
[Source "ChessBase"]
[SourceQuality "1"]
[TimeControl "5400+30"]

1. c4 {[%emt 0:00:30]} f5 {[%emt 0:02:20]} 2. d4 {[%emt 0:00:20]} Nf6 {[%emt 0:00:13]} 3. g3 {[%emt 0:00:10]} g6 {[%emt 0:00:30]} 4. Bg2 {[%emt 0:00:37]} Bg7 {[%emt 0:00:10]} 5. Nf3 {[%emt 0:00:58]} O-O {[%emt 0:00:17]} 6. O-O {[%emt 0:00:06]} d6 {[%emt 0:00:10]} 7. Nc3 {[%emt 0:01:40]} c6 {[%emt 0:00:08]} 8. d5 {[%emt 0:03:00]} e5 {[%emt 0:00:13]} 9. dxe6 {[%emt 0:00:51]} Bxe6 {[%emt 0:00:07]} 10. Bf4 {[%emt 0:03:39]} Bxc4 {[%emt 0:21:29]} 11. Bxd6 {[%emt 0:00:55]} Re8 {[%emt 0:00:32]} 12. Ne5 {[%emt 0:10:01]} Be6 {[%emt 0:00:35]} 13. Ba3 {[%emt 0:01:38]} Nbd7 {[%emt 0:05:31]} 14. Nd3 {[%emt 0:02:03]} Ng4 {[%emt 0:14:02]} 15. Qc2 {[%emt 0:02:06]} Qa5 {[%emt 0:06:12]} 16. Na4 {[%emt 0:10:24]} Qb5 {[%emt 0:10:42]} 17. b3 {[%emt 0:19:26]} Bd5 {[%emt 0:11:43]} 18. Bxd5+ {[%emt 0:12:00]} Qxd5 {[%emt 0:00:28]} 19. Rad1 {[%emt 0:00:16]} Qe4 {[%emt 0:04:44]} 20. Nc3 {[%emt 0:03:59]} Qe6 {[%emt 0:00:17]} 21. Bb2 {[%emt 0:01:59]} Rad8 {[%emt 0:04:40]} 22. h3 {[%emt 0:03:00]} Ngf6 {[%emt 0:00:45]} 23. Nf4 {[%emt 0:00:46]} Qf7 {[%emt 0:00:08]} 24. h4 {[%emt 0:00:34]} Bh6 {[%emt 0:04:52]} 25. e3 {[%emt 0:02:50]} Ne5 {[%emt 0:01:41]} 26. Nce2 {[%emt 0:01:27]} Rxd1 {[%emt 0:01:24]} 27. Rxd1 {[%emt 0:00:08]} Nfg4 {[%emt 0:00:49]} 28. Kg2 {[%emt 0:06:25]} Bg7 {[%emt 0:02:46]} 29. Ng1 {[%emt 0:04:51]} Nxf2 {[%emt 0:01:50]} 30. Qxf2 {[%emt 0:01:02]} Ng4 {[%emt 0:00:04]} 31. Qd2 {[%emt 0:00:14]} Bxb2 {[%emt 0:00:53]} 32. Qxb2 {[%emt 0:02:19]} Nxe3+ {[%emt 0:00:06]} 33. Kh3 {[%emt 0:00:04]} Nxd1 {[%emt 0:00:11]} 34. Qd4 {[%emt 0:00:07]} Ne3 {[%emt 0:00:42]} 35. Nf3 {[%emt 0:00:03]} Nd5 {[%emt 0:01:01]} 36. Ng5 {[%emt 0:01:06]} Nxf4+ {[%emt 0:00:09]} 0-1

[Event "48th Ciutat de Badalona Open 2024"]
[Site "Badalona"]
[Date "2024.08.10"]
[Round "9.3"]
[White "Vidarte Morales, Arturo"]
[Black "Chavez Suarez, Carlos Alberto"]
[Result "0-1"]
[ECO "B38"]
[WhiteElo "2166"]
[BlackElo "2279"]
[Annotator "RC"]
[PlyCount "76"]
[EventDate "2024.07.29"]
[EventType "swiss"]
[EventCountry "ESP"]
[SourceTitle "playchess.com"]
[Source "ChessBase"]
[SourceQuality "1"]
[TimeControl "5400+30"]

1. c4 {[%emt 0:00:43]} Nf6 {[%emt 0:00:19]} 2. Nc3 {[%emt 0:00:27]} c5 {[%emt 0:01:10]} 3. Nf3 {[%emt 0:00:07]} g6 {[%emt 0:00:30]} 4. d4 {[%emt 0:00:04]} cxd4 {[%emt 0:00:12]} 5. Nxd4 {[%emt 0:00:04]} Bg7 {[%emt 0:00:12]} 6. e4 {[%emt 0:00:04]} d6 {[%emt 0:00:30]} 7. Be2 {[%emt 0:00:12]} Nc6 {[%emt 0:00:54]} 8. Be3 {[%emt 0:00:08]} O-O {[%emt 0:00:11]} 9. Qd2 {[%emt 0:00:16]} a5 {[%emt 0:06:47]} 10. O-O {[%emt 0:00:25]} Bd7 {[%emt 0:02:08]} 11. f3 {[%emt 0:00:26]} Nxd4 {[%emt 0:00:18]} 12. Bxd4 {[%emt 0:00:10]} a4 {[%emt 0:01:24]} 13. Rab1 {[%emt 0:01:08]} Bc6 {[%emt 0:00:21]} 14. Rfc1 {[%emt 0:01:50]} Nd7 {[%emt 0:00:24]} 15. Be3 {[%emt 0:00:38]} Nc5 {[%emt 0:07:13]} 16. Bf1 {[%emt 0:00:57]} Be5 {[%emt 0:04:07]} 17. Nb5 {[%emt 0:03:47]} b6 {[%emt 0:12:29]} 18. Rd1 {[%emt 0:04:03]} Qc8 {[%emt 0:02:52]} 19. Nd4 {[%emt 0:00:32]} Bb7 {[%emt 0:00:34]} 20. b4 {[%emt 0:02:31]} axb3 {[%emt 0:00:54]} 21. axb3 {[%emt 0:00:14]} Qb8 {[%emt 0:08:20]} 22. b4 {[%emt 0:04:52]} Ne6 {[%emt 0:01:41]} 23. Ne2 {[%emt 0:02:43]} Ra3 {[%emt 0:03:09]} 24. f4 {[%emt 0:09:09]} Bg7 {[%emt 0:01:29]} 25. f5 {[%emt 0:00:12]} Nd8 {[%emt 0:05:58]} 26. Ng3 {[%emt 0:01:23]} Be5 {[%emt 0:09:22]} 27. Bf4 {[%emt 0:10:03]} Qa8 {[%emt 0:05:40]} 28. Bxe5 {[%emt 0:06:00]} dxe5 {[%emt 0:00:03]} 29. Qb2 {[%emt 0:01:03]} Nc6 {[%emt 0:00:26]} 30. Ra1 {[%emt 0:00:46]} Rxa1 {[%emt 0:00:57]} 31. Rxa1 {[%emt 0:00:15]} Qb8 {[%emt 0:01:58]} 32. c5 {[%emt 0:00:29]} bxc5 {[%emt 0:02:04]} 33. bxc5 {[%emt 0:00:09]} Qc7 {[%emt 0:02:14]} 34. Qb6 {[%emt 0:00:59]} Qd7 {[%emt 0:00:04]} 35. Qb2 {[%emt 0:00:40]} Rc8 {[%emt 0:02:28]} 36. Rb1 {[%emt 0:01:23]} Ba8 {[%emt 0:00:57]} 37. Ra1 {[%emt 0:03:06]} Nd4 {[%emt 0:01:18]} 38. Qb6 {[%emt 0:00:59]} Nf3+ {[%emt 0:00:33]} 0-1